[Event "22nd Ruzomberok Open 2019"]
[Site "Ruzomberok"]
[Date "2019.07.01"]
[Round "3.4"]
[White "Zvarik, Martin"]
[Black "Vacek, Ondrej"]
[Result "1/2-1/2"]
[ECO "B01"]
[WhiteElo "2308"]
[BlackElo "2125"]
[Annotator "NA"]
[PlyCount "47"]
[EventDate "2019.06.29"]
[EventType "swiss"]
[EventCountry "SVK"]
[SourceTitle "playchess.com"]
[Source "ChessBase"]
[SourceQuality "1"]
[TimeControl "40/5400+30:1800+30"]

1. e4 {[%emt 0:00:00]} d5 {[%emt 0:00:00]} 2. exd5 {[%emt 0:00:00]} Qxd5 {[%emt 0:00:00]} 3. Nf3 {[%emt 0:00:13]} Nf6 {[%emt 0:01:21]} 4. Nc3 {[%emt 0:01:09]} Qd8 {[%emt 0:00:16]} 5. Be2 {[%emt 0:00:42]} c6 {[%emt 0:00:17]} 6. b4 {[%emt 0:01:35]} a6 {[%emt 0:00:36]} 7. O-O {[%emt 0:03:35]} Bg4 {[%emt 0:01:18]} 8. h3 {[%emt 0:09:42]} Bh5 {[%emt 0:01:17]} 9. a3 {[%emt 0:07:13]} e6 {[%emt 0:01:18]} 10. Ne5 {[%emt 0:02:43]} Bxe2 {[%emt 0:01:23]} 11. Nxe2 {[%emt 0:01:31]} Be7 {[%emt 0:01:36]} 12. d4 {[%emt 0:05:42]} O-O {[%emt 0:01:07]} 13. Qd3 {[%emt 0:10:22]} Nbd7 {[%emt 0:05:52]} 14. f4 {[%emt 0:02:32]} a5 {[%emt 0:04:58]} 15. Bd2 {[%emt 0:00:28]} axb4 {[%emt 0:01:53]} 16. axb4 {[%emt 0:00:11]} Qc7 {[%emt 0:02:17]} 17. Qf3 {[%emt 0:12:13]} Rfd8 {[%emt 0:04:13]} 18. Nd3 {[%emt 0:01:02]} g6 {[%emt 0:06:14]} 19. Rfd1 {[%emt 0:08:13]} Nb6 {[%emt 0:02:41]} 20. Ne5 {[%emt 0:03:51]} Rxa1 {[%emt 0:04:25]} 21. Rxa1 {[%emt 0:00:09]} Ra8 {[%emt 0:00:08]} 22. Rxa8+ {[%emt 0:02:53]} Nxa8 {[%emt 0:00:09]} 23. c4 {[%emt 0:02:21]} Nb6 {[%emt 0:01:23]} 24. Qb3 {[%emt 0:05:05]} 1/2-1/2

[Event "22nd Ruzomberok Open 2019"]
[Site "Ruzomberok"]
[Date "2019.07.01"]
[Round "3.5"]
[White "Motycakova, Monika"]
[Black "Movsesian, Julia"]
[Result "0-1"]
[ECO "B32"]
[WhiteElo "2150"]
[BlackElo "2291"]
[Annotator "NA"]
[PlyCount "80"]
[EventDate "2019.06.29"]
[EventType "swiss"]
[EventCountry "SVK"]
[SourceTitle "playchess.com"]
[Source "ChessBase"]
[SourceQuality "1"]
[TimeControl "40/5400+30:1800+30"]

1. e4 {[%emt 0:00:00]} c5 {[%emt 0:00:00]} 2. Nf3 {[%emt 0:00:00]} Nc6 {[%emt 0:00:00]} 3. d4 {[%emt 0:00:50]} cxd4 {[%emt 0:00:46]} 4. Nxd4 {[%emt 0:00:06]} e5 {[%emt 0:00:04]} 5. Nb5 {[%emt 0:01:02]} d6 {[%emt 0:00:12]} 6. c4 {[%emt 0:01:31]} Be7 {[%emt 0:00:19]} 7. Bd3 {[%emt 0:06:14]} Nf6 {[%emt 0:04:18]} 8. N1c3 {[%emt 0:01:36]} O-O {[%emt 0:03:09]} 9. O-O {[%emt 0:01:17]} a6 {[%emt 0:03:14]} 10. Na3 {[%emt 0:00:07]} Be6 {[%emt 0:03:26]} 11. Nc2 {[%emt 0:06:28]} Rc8 {[%emt 0:01:34]} 12. b3 {[%emt 0:00:39]} Nd7 {[%emt 0:04:51]} 13. Be3 {[%emt 0:16:46]} Kh8 {[%emt 0:07:03]} 14. Nd5 {[%emt 0:06:01]} Bg5 {[%emt 0:01:56]} 15. Qh5 {[%emt 0:08:07]} Bxe3 {[%emt 0:01:12]} 16. Ncxe3 {[%emt 0:00:07]} Nd4 {[%emt 0:01:45]} 17. Rad1 {[%emt 0:07:17]} b5 {[%emt 0:17:15]} 18. f4 {[%emt 0:05:07]} Bxd5 {[%emt 0:06:23]} 19. Nxd5 {[%emt 0:10:04]} f6 {[%emt 0:04:44]} 20. Rfe1 {[%emt 0:11:06]} bxc4 {[%emt 0:08:05]} 21. Bxc4 {[%emt 0:02:06]} Nb6 {[%emt 0:01:44]} 22. Nxb6 {[%emt 0:12:07]} Qxb6 {[%emt 0:00:11]} 23. Kh1 {[%emt 0:00:19]} Nc2 {[%emt 0:02:05]} 24. Re2 {[%emt 0:01:49]} Ne3 {[%emt 0:00:30]} 25. Rde1 {[%emt 0:01:13]} Nxc4 {[%emt 0:00:23]} 26. bxc4 {[%emt 0:00:02]} Rxc4 {[%emt 0:00:09]} 27. f5 {[%emt 0:00:28]} Rfc8 {[%emt 0:01:05]} 28. Qf7 {[%emt 0:00:33]} h6 {[%emt 0:02:46]} 29. h3 {[%emt 0:00:09]} Qc6 {[%emt 0:03:13]} 30. Kh2 {[%emt 0:00:37]} Rd4 {[%emt 0:02:17]} 31. Rb2 {[%emt 0:00:57]} Rxe4 {[%emt 0:03:15]} 32. Rb7 {[%emt 0:00:04]} Rg8 {[%emt 0:00:13]} 33. Rc7 {[%emt 0:00:32]} Qa8 {[%emt 0:04:40]} 34. Rb1 {[%emt 0:00:50]} Qe8 {[%emt 0:03:42]} 35. Qd5 {[%emt 0:00:20]} Rd4 {[%emt 0:04:20]} 36. Qb7 {[%emt 0:00:50]} Qh5 {[%emt 0:02:56]} 37. Qxa6 {[%emt 0:00:34]} Qxf5 {[%emt 0:00:10]} 38. Rf1 {[%emt 0:00:30]} Qe4 {[%emt 0:00:33]} 39. Qa7 {[%emt 0:00:28]} Ra8 {[%emt 0:02:06]} 40. Qb6 {[%emt 0:00:00]} Rxa2 {[%emt 0:00:00]} 0-1

[Event "22nd Ruzomberok Open 2019"]
[Site "Ruzomberok"]
[Date "2019.07.01"]
[Round "3.6"]
[White "Jakab, Bela"]
[Black "Hrnciar, Roman"]
[Result "1-0"]
[ECO "B00"]
[WhiteElo "2278"]
[BlackElo "2096"]
[Annotator "NA"]
[PlyCount "59"]
[EventDate "2019.06.29"]
[EventType "swiss"]
[EventCountry "SVK"]
[SourceTitle "playchess.com"]
[Source "ChessBase"]
[SourceQuality "1"]
[TimeControl "40/5400+30:1800+30"]

1. e4 {[%emt 0:00:00]} Nc6 {[%emt 0:00:00]} 2. d4 {[%emt 0:00:00]} d6 {[%emt 0:00:00]} 3. Nc3 {[%emt 0:00:00]} g6 {[%emt 0:00:13]} 4. Be3 {[%emt 0:00:11]} Bg7 {[%emt 0:00:08]} 5. Bb5 {[%emt 0:00:28]} Bd7 {[%emt 0:00:21]} 6. Nge2 {[%emt 0:04:21]} e5 {[%emt 0:02:54]} 7. f3 {[%emt 0:04:50]} Nge7 {[%emt 0:04:57]} 8. h4 {[%emt 0:03:42]} f5 {[%emt 0:01:42]} 9. Bxc6 {[%emt 0:08:19]} Bxc6 {[%emt 0:02:35]} 10. h5 {[%emt 0:04:13]} f4 {[%emt 0:06:31]} 11. Bf2 {[%emt 0:00:25]} d5 {[%emt 0:05:23]} 12. exd5 {[%emt 0:05:15]} Nxd5 {[%emt 0:00:26]} 13. Ne4 {[%emt 0:12:23]} Ne3 {[%emt 0:03:04]} 14. Bxe3 {[%emt 0:00:29]} Bxe4 {[%emt 0:00:17]} 15. Bxf4 {[%emt 0:05:59]} exf4 {[%emt 0:02:12]} 16. fxe4 {[%emt 0:01:01]} Qg5 {[%emt 0:00:30]} 17. h6 {[%emt 0:10:29]} Bf6 {[%emt 0:06:36]} 18. Qd3 {[%emt 0:07:23]} O-O-O {[%emt 0:08:23]} 19. Qh3+ {[%emt 0:02:27]} Kb8 {[%emt 0:00:28]} 20. e5 {[%emt 0:00:07]} f3 {[%emt 0:07:16]} 21. gxf3 {[%emt 0:01:15]} Bxe5 {[%emt 0:08:12]} 22. dxe5 {[%emt 0:01:55]} Qxe5 {[%emt 0:00:47]} 23. Qh2 {[%emt 0:02:38]} Qxb2 {[%emt 0:01:39]} 24. O-O {[%emt 0:01:13]} Rd5 {[%emt 0:01:22]} 25. Ng3 {[%emt 0:06:51]} Qd4+ {[%emt 0:02:38]} 26. Qf2 {[%emt 0:01:05]} Qh4 {[%emt 0:00:17]} 27. Rad1 {[%emt 0:01:11]} Rg5 {[%emt 0:05:38]} 28. Kg2 {[%emt 0:00:09]} Qxh6 {[%emt 0:06:03]} 29. Qd2 {[%emt 0:01:06]} a6 {[%emt 0:03:22]} 30. Rh1 {[%emt 0:00:09]} 1-0

[Event "22nd Ruzomberok Open 2019"]
[Site "Ruzomberok"]
[Date "2019.07.01"]
[Round "3.7"]
[White "Holly, Andrej"]
[Black "Pniaczek, Marek"]
[Result "1-0"]
[ECO "A20"]
[WhiteElo "2046"]
[BlackElo "2276"]
[Annotator "NA"]
[PlyCount "91"]
[EventDate "2019.06.29"]
[EventType "swiss"]
[EventCountry "SVK"]
[SourceTitle "playchess.com"]
[Source "ChessBase"]
[SourceQuality "1"]
[TimeControl "40/5400+30:1800+30"]

1. c4 {[%emt 0:00:00]} e5 {[%emt 0:00:34]} 2. g3 {[%emt 0:00:00]} Nf6 {[%emt 0:00:49]} 3. Bg2 {[%emt 0:00:05]} Nc6 {[%emt 0:00:39]} 4. Nc3 {[%emt 0:02:40]} Bb4 {[%emt 0:02:51]} 5. Nd5 {[%emt 0:01:51]} Bc5 {[%emt 0:05:06]} 6. e3 {[%emt 0:03:42]} d6 {[%emt 0:07:34]} 7. Ne2 {[%emt 0:00:54]} a5 {[%emt 0:06:16]} 8. O-O {[%emt 0:02:18]} Bg4 {[%emt 0:00:58]} 9. h3 {[%emt 0:09:28]} Bf5 {[%emt 0:01:40]} 10. d3 {[%emt 0:03:34]} h6 {[%emt 0:03:52]} 11. Kh2 {[%emt 0:04:20]} O-O {[%emt 0:04:08]} 12. f4 {[%emt 0:03:38]} Nxd5 {[%emt 0:00:38]} 13. cxd5 {[%emt 0:01:23]} Ne7 {[%emt 0:00:50]} 14. e4 {[%emt 0:05:45]} Bd7 {[%emt 0:01:55]} 15. f5 {[%emt 0:08:38]} f6 {[%emt 0:01:55]} 16. d4 {[%emt 0:03:19]} Bb6 {[%emt 0:01:59]} 17. dxe5 {[%emt 0:01:05]} dxe5 {[%emt 0:00:42]} 18. Nc3 {[%emt 0:07:27]} Nc8 {[%emt 0:01:23]} 19. Qg4 {[%emt 0:02:08]} Kh8 {[%emt 0:02:26]} 20. Qh4 {[%emt 0:00:18]} Qe7 {[%emt 0:05:22]} 21. g4 {[%emt 0:03:32]} Nd6 {[%emt 0:02:01]} 22. Qg3 {[%emt 0:02:04]} Kg8 {[%emt 0:02:57]} 23. h4 {[%emt 0:04:34]} Kf7 {[%emt 0:01:01]} 24. Bf3 {[%emt 0:00:17]} Rh8 {[%emt 0:00:40]} 25. Kg2 {[%emt 0:02:53]} Rag8 {[%emt 0:03:42]} 26. h5 {[%emt 0:03:04]} Bd4 {[%emt 0:08:00]} 27. Qe1 {[%emt 0:04:34]} b5 {[%emt 0:03:03]} 28. Be3 {[%emt 0:08:42]} Nc4 {[%emt 0:01:46]} 29. Bxd4 {[%emt 0:00:26]} exd4 {[%emt 0:00:04]} 30. Nd1 {[%emt 0:00:13]} c5 {[%emt 0:00:44]} 31. b3 {[%emt 0:02:08]} Ne5 {[%emt 0:02:35]} 32. Qxa5 {[%emt 0:02:04]} c4 {[%emt 0:07:01]} 33. Qd2 {[%emt 0:03:36]} Qc5 {[%emt 0:00:49]} 34. b4 {[%emt 0:01:11]} Qb6 {[%emt 0:00:51]} 35. Nf2 {[%emt 0:01:57]} Ra8 {[%emt 0:01:36]} 36. a3 {[%emt 0:01:27]} c3 {[%emt 0:13:19]} 37. Qc1 {[%emt 0:00:14]} Nc4 {[%emt 0:01:23]} 38. Re1 {[%emt 0:00:30]} Ra7 {[%emt 0:04:36]} 39. Nd3 {[%emt 0:01:13]} Rha8 {[%emt 0:00:13]} 40. e5 {[%emt 0:01:44]} fxe5 {[%emt 0:01:10]} 41. Nxe5+ {[%emt 0:30:22]} Nxe5 {[%emt 0:30:48]} 42. Rxe5 {[%emt 0:00:00]} Rc8 {[%emt 0:00:00]} 43. Qc2 {[%emt 0:00:00]} Qc7 {[%emt 0:00:00]} 44. f6 {[%emt 0:00:00]} Rg8 {[%emt 0:00:00]} 45. Qg6+ {[%emt 0:00:00]} Kf8 {[%emt 0:00:00]} 46. Re7 {[%emt 0:00:00]} 1-0

[Event "22nd Ruzomberok Open 2019"]
[Site "Ruzomberok"]
[Date "2019.07.01"]
[Round "3.8"]
[White "Karas, Marek"]
[Black "Bednar, Jan"]
[Result "1-0"]
[ECO "A05"]
[WhiteElo "2268"]
[BlackElo "2084"]
[Annotator "NA"]
[PlyCount "66"]
[EventDate "2019.06.29"]
[EventType "swiss"]
[EventCountry "SVK"]
[SourceTitle "playchess.com"]
[Source "ChessBase"]
[SourceQuality "1"]
[TimeControl "40/5400+30:1800+30"]

1. Nf3 {[%emt 0:00:00]} Nf6 {[%emt 0:02:22]} 2. c4 {[%emt 0:00:00]} d5 {[%emt 0:00:18]} 3. d4 {[%emt 0:00:18]} g6 {[%emt 0:00:40]} 4. cxd5 {[%emt 0:02:35]} Nxd5 {[%emt 0:01:14]} 5. e4 {[%emt 0:00:12]} Nb6 {[%emt 0:00:19]} 6. Nc3 {[%emt 0:01:10]} Bg7 {[%emt 0:00:22]} 7. h3 {[%emt 0:00:51]} O-O {[%emt 0:00:54]} 8. Be2 {[%emt 0:00:47]} Nc6 {[%emt 0:04:03]} 9. Be3 {[%emt 0:01:02]} e5 {[%emt 0:10:17]} 10. d5 {[%emt 0:01:08]} Ne7 {[%emt 0:07:30]} 11. Qb3 {[%emt 0:00:35]} Kh8 {[%emt 0:01:15]} 12. a4 {[%emt 0:05:35]} Nd7 {[%emt 0:07:21]} 13. h4 {[%emt 0:02:19]} f5 {[%emt 0:04:23]} 14. Ng5 {[%emt 0:11:36]} Nf6 {[%emt 0:01:00]} 15. h5 {[%emt 0:03:14]} f4 {[%emt 0:02:58]} 16. Bc5 {[%emt 0:00:55]} h6 {[%emt 0:29:18]} 17. hxg6 {[%emt 0:00:47]} Nxg6 {[%emt 0:01:00]} 18. Bxf8 {[%emt 0:00:34]} Qxf8 {[%emt 0:00:37]} 19. Ne6 {[%emt 0:00:42]} Qe7 {[%emt 0:01:49]} 20. Qc4 {[%emt 0:00:59]} Bxe6 {[%emt 0:01:42]} 21. dxe6 {[%emt 0:00:02]} c6 {[%emt 0:00:24]} 22. a5 {[%emt 0:01:47]} Rd8 {[%emt 0:00:28]} 23. Rd1 {[%emt 0:00:52]} Rc8 {[%emt 0:04:25]} 24. Na4 {[%emt 0:03:21]} Nf8 {[%emt 0:00:58]} 25. Nc5 {[%emt 0:01:27]} b6 {[%emt 0:07:05]} 26. axb6 {[%emt 0:00:03]} axb6 {[%emt 0:00:05]} 27. Nd7 {[%emt 0:00:13]} b5 {[%emt 0:04:58]} 28. Nxf8 {[%emt 0:02:09]} Bxf8 {[%emt 0:00:45]} 29. Qb3 {[%emt 0:01:11]} Nxe4 {[%emt 0:00:58]} 30. Rd7 {[%emt 0:00:51]} Qb4+ {[%emt 0:00:17]} 31. Qxb4 {[%emt 0:00:10]} Bxb4+ {[%emt 0:00:02]} 32. Kf1 {[%emt 0:00:23]} Bf8 {[%emt 0:00:54]} 33. e7 {[%emt 0:00:11]} Ng3+ {[%emt 0:01:13]} 1-0

[Event "22nd Ruzomberok Open 2019"]
[Site "Ruzomberok"]
[Date "2019.07.01"]
[Round "3.9"]
[White "Cech, Dominik"]
[Black "Bartek, Ladislav"]
[Result "1-0"]
[ECO "C84"]
[WhiteElo "2092"]
[BlackElo "2042"]
[Annotator "NA"]
[PlyCount "87"]
[EventDate "2019.06.29"]
[EventType "swiss"]
[EventCountry "SVK"]
[SourceTitle "playchess.com"]
[Source "ChessBase"]
[SourceQuality "1"]
[TimeControl "40/5400+30:1800+30"]

1. e4 {[%emt 0:01:52]} e5 {[%emt 0:00:00]} 2. Nf3 {[%emt 0:00:20]} Nc6 {[%emt 0:00:00]} 3. Bb5 {[%emt 0:00:21]} a6 {[%emt 0:00:00]} 4. Ba4 {[%emt 0:00:21]} Nf6 {[%emt 0:00:03]} 5. O-O {[%emt 0:00:48]} Be7 {[%emt 0:00:11]} 6. d3 {[%emt 0:01:07]} b5 {[%emt 0:00:29]} 7. Bb3 {[%emt 0:00:12]} d6 {[%emt 0:01:42]} 8. a3 {[%emt 0:01:50]} O-O {[%emt 0:00:10]} 9. Nc3 {[%emt 0:00:41]} Be6 {[%emt 0:00:13]} 10. Nd5 {[%emt 0:16:54]} Nd4 {[%emt 0:00:08]} 11. Nxd4 {[%emt 0:02:52]} exd4 {[%emt 0:00:17]} 12. Nxf6+ {[%emt 0:07:40]} Bxf6 {[%emt 0:00:12]} 13. Bxe6 {[%emt 0:00:12]} fxe6 {[%emt 0:00:10]} 14. Qg4 {[%emt 0:00:35]} Qd7 {[%emt 0:02:31]} 15. Bd2 {[%emt 0:01:48]} Rae8 {[%emt 0:00:21]} 16. f4 {[%emt 0:02:05]} c5 {[%emt 0:00:50]} 17. Rf3 {[%emt 0:04:58]} c4 {[%emt 0:04:38]} 18. Rh3 {[%emt 0:19:41]} g6 {[%emt 0:13:00]} 19. Re1 {[%emt 0:01:46]} c3 {[%emt 0:02:55]} 20. bxc3 {[%emt 0:06:08]} dxc3 {[%emt 0:00:10]} 21. Be3 {[%emt 0:00:06]} Qg7 {[%emt 0:00:30]} 22. Qe2 {[%emt 0:04:50]} Bd4 {[%emt 0:00:40]} 23. Qf2 {[%emt 0:00:59]} Bxe3 {[%emt 0:00:44]} 24. Qxe3 {[%emt 0:00:22]} Qf7 {[%emt 0:11:29]} 25. Rf3 {[%emt 0:01:50]} Qc7 {[%emt 0:03:41]} 26. Rb1 {[%emt 0:05:06]} e5 {[%emt 0:06:22]} 27. f5 {[%emt 0:02:49]} gxf5 {[%emt 0:01:34]} 28. exf5 {[%emt 0:06:40]} Rc8 {[%emt 0:04:37]} 29. d4 {[%emt 0:04:17]} Kh8 {[%emt 0:09:37]} 30. Re1 {[%emt 0:04:10]} Rfe8 {[%emt 0:03:35]} 31. f6 {[%emt 0:00:35]} Qf7 {[%emt 0:00:21]} 32. Qg5 {[%emt 0:01:17]} Rg8 {[%emt 0:01:48]} 33. Qh4 {[%emt 0:00:16]} Rc4 {[%emt 0:02:29]} 34. Re4 {[%emt 0:00:49]} Rxd4 {[%emt 0:04:34]} 35. Rxd4 {[%emt 0:00:13]} exd4 {[%emt 0:00:11]} 36. Qxd4 {[%emt 0:00:14]} Re8 {[%emt 0:01:43]} 37. Qxc3 {[%emt 0:00:31]} d5 {[%emt 0:02:19]} 38. h3 {[%emt 0:00:46]} Rd8 {[%emt 0:01:19]} 39. Qe5 {[%emt 0:00:32]} Re8 {[%emt 0:00:34]} 40. Qc3 {[%emt 0:00:22]} Rd8 {[%emt 0:00:09]} 41. Qd4 {[%emt 0:16:50]} Re8 {[%emt 0:03:25]} 42. Rc3 {[%emt 0:00:18]} h6 {[%emt 0:00:46]} 43. Qf4 {[%emt 0:03:56]} Qh7 {[%emt 0:05:56]} 44. Rc7 {[%emt 0:03:52]} 1-0

[Event "22nd Ruzomberok Open 2019"]
[Site "Ruzomberok"]
[Date "2019.07.01"]
[Round "3.10"]
[White "Bakalar, Jan"]
[Black "Sarkozy, Ladislav"]
[Result "0-1"]
[ECO "A16"]
[WhiteElo "1969"]
[BlackElo "2227"]
[Annotator "NA"]
[PlyCount "62"]
[EventDate "2019.06.29"]
[EventType "swiss"]
[EventCountry "SVK"]
[SourceTitle "playchess.com"]
[Source "ChessBase"]
[SourceQuality "1"]
[TimeControl "40/5400+30:1800+30"]

1. c4 {[%emt 0:00:17]} Nf6 {[%emt 0:02:12]} 2. Nc3 {[%emt 0:03:26]} g6 {[%emt 0:00:29]} 3. e4 {[%emt 0:01:39]} d6 {[%emt 0:00:09]} 4. g3 {[%emt 0:00:52]} Bg7 {[%emt 0:00:31]} 5. Bg2 {[%emt 0:00:20]} O-O {[%emt 0:00:20]} 6. Nge2 {[%emt 0:00:24]} c5 {[%emt 0:05:07]} 7. O-O {[%emt 0:00:59]} Nc6 {[%emt 0:00:33]} 8. h3 {[%emt 0:02:27]} Rb8 {[%emt 0:04:03]} 9. d3 {[%emt 0:02:11]} a6 {[%emt 0:00:39]} 10. f4 {[%emt 0:01:38]} Bd7 {[%emt 0:01:07]} 11. Be3 {[%emt 0:08:11]} b5 {[%emt 0:10:51]} 12. b3 {[%emt 0:16:22]} b4 {[%emt 0:09:28]} 13. Na4 {[%emt 0:01:48]} Ne8 {[%emt 0:03:48]} 14. Rb1 {[%emt 0:02:01]} Nc7 {[%emt 0:00:42]} 15. f5 {[%emt 0:08:13]} Nd4 {[%emt 0:03:07]} 16. Bxd4 {[%emt 0:02:27]} cxd4 {[%emt 0:00:22]} 17. Nb2 {[%emt 0:00:21]} a5 {[%emt 0:15:32]} 18. Qc2 {[%emt 0:03:08]} Na6 {[%emt 0:00:26]} 19. Nd1 {[%emt 0:01:29]} Nc5 {[%emt 0:00:21]} 20. g4 {[%emt 0:03:50]} e5 {[%emt 0:02:10]} 21. Nf2 {[%emt 0:08:31]} Bh6 {[%emt 0:05:37]} 22. Bf3 {[%emt 0:01:26]} a4 {[%emt 0:00:55]} 23. Kg2 {[%emt 0:00:39]} axb3 {[%emt 0:00:19]} 24. axb3 {[%emt 0:00:03]} Qh4 {[%emt 0:01:16]} 25. Ra1 {[%emt 0:02:44]} Ra8 {[%emt 0:00:22]} 26. Nh1 {[%emt 0:02:11]} Rfb8 {[%emt 0:00:50]} 27. Ng1 {[%emt 0:01:46]} Qd8 {[%emt 0:00:50]} 28. Rxa8 {[%emt 0:02:49]} Rxa8 {[%emt 0:00:05]} 29. Bd1 {[%emt 0:00:27]} Be3 {[%emt 0:02:15]} 30. fxg6 {[%emt 0:03:22]} fxg6 {[%emt 0:01:50]} 31. Qe2 {[%emt 0:01:45]} Ra3 {[%emt 0:01:49]} 0-1

[Event "22nd Ruzomberok Open 2019"]
[Site "Ruzomberok"]
[Date "2019.07.01"]
[Round "3.11"]
[White "Orvisky, Vladimir"]
[Black "Karcol, Jan"]
[Result "0-1"]
[ECO "A31"]
[WhiteElo "1719"]
[BlackElo "1882"]
[Annotator "NA"]
[PlyCount "74"]
[EventDate "2019.06.29"]
[EventType "swiss"]
[EventCountry "SVK"]
[SourceTitle "playchess.com"]
[Source "ChessBase"]
[SourceQuality "1"]
[TimeControl "40/5400+30:1800+30"]

1. c4 {[%emt 0:00:00]} c5 {[%emt 0:00:00]} 2. Nf3 {[%emt 0:00:04]} Nf6 {[%emt 0:00:24]} 3. d4 {[%emt 0:00:05]} cxd4 {[%emt 0:00:29]} 4. Nxd4 {[%emt 0:00:01]} d5 {[%emt 0:00:19]} 5. cxd5 {[%emt 0:01:35]} Nxd5 {[%emt 0:00:49]} 6. g3 {[%emt 0:05:19]} e5 {[%emt 0:02:06]} 7. Nf3 {[%emt 0:06:24]} Nc6 {[%emt 0:04:28]} 8. e4 {[%emt 0:10:46]} Bb4+ {[%emt 0:01:18]} 9. Nbd2 {[%emt 0:00:09]} Nf6 {[%emt 0:05:05]} 10. a3 {[%emt 0:05:08]} Qa5 {[%emt 0:02:01]} 11. Rb1 {[%emt 0:04:54]} Bxd2+ 12. Bxd2 {[%emt 0:17:45]} Qb6 {[%emt 0:08:17]} 13. Qa4 {[%emt 0:00:30]} O-O {[%emt 0:00:43]} 14. Bg2 {[%emt 0:16:14]} Bd7 {[%emt 0:02:53]} 15. O-O Nd4 16. Qd1 {[%emt 0:08:13]} Bg4 {[%emt 0:13:50]} 17. Re1 {[%emt 0:06:43]} Rad8 {[%emt 0:01:21]} 18. Be3 {[%emt 0:01:24]} Nxf3+ {[%emt 0:01:31]} 19. Bxf3 {[%emt 0:01:24]} Rxd1 {[%emt 0:00:26]} 20. Bxb6 {[%emt 0:00:05]} Rxe1+ 21. Rxe1 Bxf3 {[%emt 0:01:34]} 22. Bxa7 {[%emt 0:00:55]} Re8 {[%emt 0:00:51]} 23. Re3 {[%emt 0:01:11]} Bxe4 {[%emt 0:00:23]} 24. f3 {[%emt 0:00:23]} Bc6 25. Bc5 {[%emt 0:00:47]} Nd5 {[%emt 0:04:43]} 26. Re2 {[%emt 0:00:58]} f5 {[%emt 0:00:45]} 27. Kf2 {[%emt 0:00:24]} Kf7 {[%emt 0:00:24]} 28. b4 {[%emt 0:00:30]} b6 {[%emt 0:01:23]} 29. Be3 {[%emt 0:00:12]} Nxe3 {[%emt 0:01:10]} 30. Rxe3 {[%emt 0:00:25]} Ke6 {[%emt 0:04:27]} 31. Rc3 {[%emt 0:00:38]} Rc8 {[%emt 0:00:49]} 32. Rd3 Bd7 {[%emt 0:00:34]} 33. Ke3 {[%emt 0:01:26]} Rc2 34. h3 Bb5 {[%emt 0:01:02]} 35. Rd2 {[%emt 0:01:10]} Rxd2 {[%emt 0:00:38]} 36. Kxd2 {[%emt 0:00:11]} Kd5 {[%emt 0:00:44]} 37. Kc3 Be2 {[%emt 0:03:53]} 0-1

[Event "22nd Ruzomberok Open 2019"]
[Site "Ruzomberok"]
[Date "2019.07.01"]
[Round "3.12"]
[White "Ambrozi, Peter"]
[Black "Stanko, Ivan"]
[Result "1-0"]
[ECO "A49"]
[WhiteElo "1888"]
[BlackElo "1859"]
[Annotator "NA"]
[PlyCount "73"]
[EventDate "2019.06.29"]
[EventType "swiss"]
[EventCountry "SVK"]
[SourceTitle "playchess.com"]
[Source "ChessBase"]
[SourceQuality "1"]
[TimeControl "40/5400+30:1800+30"]

1. d4 {[%emt 0:00:00]} Nf6 {[%emt 0:00:21]} 2. Nf3 {[%emt 0:00:12]} g6 {[%emt 0:01:14]} 3. g3 {[%emt 0:00:43]} Bg7 {[%emt 0:01:06]} 4. Bg2 {[%emt 0:00:07]} O-O {[%emt 0:00:28]} 5. O-O {[%emt 0:00:30]} d6 {[%emt 0:01:12]} 6. c4 {[%emt 0:00:49]} c5 {[%emt 0:03:39]} 7. dxc5 {[%emt 0:00:56]} dxc5 {[%emt 0:00:08]} 8. Ne5 {[%emt 0:00:20]} Qb6 {[%emt 0:04:26]} 9. Nc3 {[%emt 0:09:15]} Nbd7 {[%emt 0:12:36]} 10. Nd3 {[%emt 0:01:22]} Re8 {[%emt 0:04:41]} 11. e4 {[%emt 0:07:45]} e5 {[%emt 0:03:51]} 12. Be3 {[%emt 0:00:36]} Qc6 {[%emt 0:04:27]} 13. Nd5 {[%emt 0:07:50]} b6 {[%emt 0:01:07]} 14. Rc1 {[%emt 0:04:06]} Bb7 {[%emt 0:00:32]} 15. b4 {[%emt 0:05:59]} Rad8 {[%emt 0:01:57]} 16. b5 {[%emt 0:01:46]} Qd6 {[%emt 0:00:21]} 17. a4 {[%emt 0:01:39]} Nf8 {[%emt 0:00:46]} 18. f4 {[%emt 0:04:51]} Nxd5 {[%emt 0:01:00]} 19. exd5 {[%emt 0:00:46]} Nd7 {[%emt 0:00:58]} 20. f5 {[%emt 0:05:07]} f6 {[%emt 0:11:23]} 21. Be4 {[%emt 0:02:01]} Nf8 {[%emt 0:02:37]} 22. g4 {[%emt 0:03:06]} g5 {[%emt 0:08:55]} 23. Qd2 {[%emt 0:00:30]} h6 {[%emt 0:00:14]} 24. Rb1 {[%emt 0:02:06]} Ra8 {[%emt 0:04:59]} 25. a5 {[%emt 0:02:19]} Bc8 {[%emt 0:02:25]} 26. Nf2 {[%emt 0:01:02]} Bd7 {[%emt 0:00:40]} 27. Bg2 {[%emt 0:01:14]} Rab8 {[%emt 0:02:59]} 28. Ne4 {[%emt 0:00:31]} Qe7 {[%emt 0:00:59]} 29. axb6 {[%emt 0:02:07]} axb6 {[%emt 0:00:39]} 30. Ra1 {[%emt 0:00:07]} Qd8 {[%emt 0:00:53]} 31. h4 {[%emt 0:03:08]} Nh7 {[%emt 0:00:18]} 32. Ra7 {[%emt 0:00:58]} Re7 {[%emt 0:07:28]} 33. d6 {[%emt 0:00:58]} Rf7 {[%emt 0:00:06]} 34. hxg5 {[%emt 0:00:44]} hxg5 {[%emt 0:00:29]} 35. Rfa1 {[%emt 0:01:11]} Kf8 {[%emt 0:05:52]} 36. Nc3 {[%emt 0:01:15]} Ke8 {[%emt 0:00:59]} 37. Ra8 {[%emt 0:01:53]} 1-0